fUST/lending_fUST_20240226
["ID","MTS","AMOUNT","RATE_DAILY","PERIOD"]
[315193263,1708920640235,-500.0,0.00019178,2]
[315193264,1708920640244,-500.43159131,0.00019178,2]
[315193265,1708920640253,-500.0,0.00019178,2]
[315193266,1708920640262,-500.0,0.00019178,2]
[315193267,1708920640271,-501.16229543,0.00019178,2]
[315193268,1708920640281,-500.0,0.00019178,2]
[315193269,1708920640290,-500.0,0.00019178,2]
[315193270,1708920640299,-573.72782983,0.00019178,2]
[315193271,1708920640309,-500.0,0.00019178,2]
[315193272,1708920640318,-500.0,0.00019178,2]
[315193273,1708920640329,-500.0,0.00019178,2]
[315193274,1708920640338,-500.0,0.00019178,2]
[315193275,1708920640347,-500.0,0.00019178,2]
[315193276,1708920640356,-500.0,0.00019178,2]
[315193277,1708920640365,-1000.0,0.00019178,2]
[315193278,1708920640374,-231.56852676,0.00019178,2]
[315193279,1708920640383,-500.0,0.00019178,2]
[315193280,1708920640392,-500.0,0.00019178,2]
[315193281,1708920640401,-500.33386123,0.00019178,2]
[315193282,1708920640411,-500.43962735,0.00019178,2]
[315193283,1708920640420,-500.0,0.00019178,2]
[315193284,1708920640429,-500.0,0.00019178,2]
[315193285,1708920640438,-268.97832651,0.00019178,2]
[315193286,1708920640447,-22783.65,0.00019178,2]
[315193287,1708920640457,-500.0,0.00019178,2]
[315193288,1708920640466,-500.20438763,0.00019178,2]
[315193289,1708920640476,-500.0,0.00019178,2]
[315193290,1708920640485,-500.0,0.00019178,2]
[315193291,1708920640494,-500.0,0.00019178,2]
[315193292,1708920640503,-300.35845883,0.00019178,2]
[315193293,1708920640513,-522.16106929,0.00019178,2]
[315193294,1708920640523,-502.14294064,0.00019178,2]
[315193295,1708920640533,-291.02772414,0.00019178,2]
[315193296,1708920640542,-1778.63,0.00019178,2]
[315193298,1708920640552,-518.49613271,0.00019178,2]
[315193300,1708920640561,-643.67,0.00019178,2]
[315193301,1708920640572,-2320.92,0.00019178,2]
[315193303,1708920640583,-409.80494479,0.00019178,2]
[315193305,1708920640593,-500.0,0.00019178,2]
[315193306,1708920640602,-500.0,0.00019178,2]
[315193308,1708920640611,-592.7,0.00019178,2]
[315193310,1708920640620,-592.7,0.00019178,2]
[315193311,1708920640630,-592.7,0.00019178,2]
[315193312,1708920640639,-592.7,0.00019178,2]
[315193313,1708920640648,-592.7,0.00019178,2]
[315193314,1708920640659,-8250.54,0.00019178,2]
[315193315,1708920640669,-500.0,0.00019178,2]
[315193316,1708920640679,-500.0,0.00019178,2]
[315193317,1708920640689,-500.0,0.00019178,2]
[315193318,1708920640699,-500.0,0.00019178,2]
[315193319,1708920640708,-500.0,0.00019178,2]
[315193320,1708920640717,-500.0,0.00019178,2]
[315193321,1708920640727,-500.0,0.00019178,2]
[315193322,1708920640737,-500.0,0.00019178,2]
[315193323,1708920640746,-500.0,0.00019178,2]
[315193324,1708920640756,-625.93045909,0.00019178,2]
[315193325,1708920640765,-501.17230716,0.00019178,2]
[315193326,1708920640775,-11233.87,0.00019178,2]
[315193327,1708920640784,-500.0,0.00019178,2]
[315193328,1708920640793,-500.0,0.00019178,2]
[315193329,1708920640803,-604.40046169,0.00019178,2]
[315193330,1708920640812,-230.48065429,0.00019178,2]
[315193331,1708920640822,-805.16,0.00019178,2]
[315193332,1708920640831,-500.0,0.00019178,2]
[315193333,1708920640840,-500.0,0.00019178,2]
[315193334,1708920640849,-500.0,0.00019178,2]
[315193335,1708920640858,-500.0,0.00019178,2]
[315193336,1708920640867,-3074.48,0.00019178,2]
[315193337,1708920640877,-2405.23,0.00019178,2]
[315193338,1708920640887,-500.0,0.00019178,2]
[315193339,1708920640896,-500.0,0.00019178,2]
[315193340,1708920640906,-500.0,0.00019178,2]
[315193341,1708920640915,-500.0,0.00019178,2]
[315193342,1708920640924,-418.40116223,0.00019178,2]
[315193343,1708920640933,-500.0,0.00019178,2]
[315193344,1708920640942,-500.0,0.00019178,2]
[315193345,1708920640951,-3496.35,0.00019178,2]
[315193346,1708920640961,-500.0,0.00019178,2]
[315193347,1708920640970,-500.0,0.00019178,2]
[315193348,1708920640979,-500.0,0.00019178,2]
[315193349,1708920640988,-500.0,0.00019178,2]
[315193350,1708920640998,-3161.99,0.00019178,2]
[315193351,1708920641118,-1541.99,0.00019178,2]
[315193352,1708920641128,-22902.69,0.00019178,2]
[315193353,1708920641137,-500.0,0.00019178,2]
[315193354,1708920641146,-500.0,0.00019178,2]
[315193355,1708920641155,-1270.54,0.00019178,2]
[315193356,1708920641163,-500.0,0.00019178,2]
[315193357,1708920641172,-500.0,0.00019178,2]
[315193358,1708920641181,-500.0,0.00019178,2]
[315193359,1708920641190,-4348.38,0.00019178,2]
[315193360,1708920641199,-500.52146874,0.00019178,2]
[315193361,1708920641208,-500.0,0.00019178,2]
[315193362,1708920641217,-500.0,0.00019178,2]
[315193363,1708920641227,-1654.62,0.00019178,2]
[315193364,1708920641236,-2174.93,0.00019178,2]
[315193365,1708920641245,-284.91608667,0.00019178,2]
[315193366,1708920641254,-500.0,0.00019178,2]
[315193367,1708920641264,-400.24472666,0.00019178,2]
[315193368,1708920641272,-164.21859,0.00019178,2]
[315193369,1708920641282,-166.216666,0.00019178,2]
[315193370,1708920641291,-166.666666,0.00019178,2]
[315193371,1708920641300,-163.6093,0.00019178,2]
[315193372,1708920641309,-287.6731672,0.000192,2]
[315193373,1708920641318,-153.0,0.000192,2]
[315193374,1708920641327,-200.5826354,0.000192,2]
[315193375,1708920641336,-200.5826354,0.000192,2]
[315193376,1708920641345,-200.5826354,0.000192,2]
[315193377,1708920641354,-153.0,0.000192,2]
[315193378,1708920641363,-200.5826354,0.000192,2]
[315193379,1708920641372,-153.0,0.000192,2]
[315193380,1708920641381,-174.0,0.000194,2]
[315193381,1708920641390,-2908.84509306,0.000194,2]
[315193382,1708920641399,-592.7,0.00019451,2]
[315193383,1708920641408,-592.7,0.00019451,2]
[315193384,1708920641417,-592.7,0.00019451,2]
[315193385,1708920641427,-592.7,0.00019451,2]
[315193386,1708920641435,-500.0,0.00019452,2]
[315193387,1708920641445,-500.0,0.00019452,2]
[315193388,1708920641454,-500.0,0.00019452,2]
[315193389,1708920641463,-500.0,0.00019452,2]
[315193390,1708920641472,-503.59022271,0.00019452,2]
[315193391,1708920641482,-500.0,0.00019452,2]
[315193392,1708920641490,-500.0,0.00019452,2]
[315193393,1708920641499,-435.78314864,0.00019452,2]
[315193394,1708920641508,-500.0,0.00019452,2]
[315193395,1708920641517,-500.0,0.00019452,2]
[315193396,1708920641526,-501.12560342,0.00019452,2]
[315193397,1708920641535,-500.0,0.00019452,2]
[315193398,1708920641544,-500.0,0.00019452,2]
[315193399,1708920641553,-1281.73,0.00019452,2]
[315193400,1708920641562,-500.0,0.00019452,2]
[315193401,1708920641571,-500.0,0.00019452,2]
[315193402,1708920641584,-500.0,0.00019452,2]
[315193403,1708920641593,-500.24182891,0.00019452,2]
[315193404,1708920641602,-500.0,0.00019452,2]
[315193405,1708920641611,-513.93926207,0.00019452,2]
[315193406,1708920641621,-500.0,0.00019452,2]
[315193407,1708920641630,-500.0,0.00019452,2]
[315193408,1708920641639,-500.0,0.00019452,2]
[315193409,1708920641648,-500.0,0.00019452,2]
[315193410,1708920641658,-500.0,0.00019452,2]
[315193411,1708920641667,-501.03015626,0.00019452,2]
[315193412,1708920641677,-500.0,0.00019452,2]
[315193413,1708920641686,-500.0,0.00019452,2]
[315193414,1708920641695,-501.16512852,0.00019452,2]
[315193415,1708920641704,-500.0,0.00019452,2]
[315193416,1708920641714,-500.0,0.00019452,2]
[315193417,1708920641723,-500.0,0.00019452,2]
[315193418,1708920641733,-500.0,0.00019452,2]
[315193419,1708920641743,-500.0,0.00019452,2]
[315193420,1708920641752,-500.0,0.00019452,2]
[315193421,1708920641761,-500.0,0.00019452,2]
[315193422,1708920641770,-1753.33,0.00019452,2]
[315193423,1708920641778,-500.0,0.00019452,2]
[315193424,1708920641787,-500.0,0.00019452,2]
[315193425,1708920641796,-773.14,0.00019452,2]
[315193426,1708920641805,-500.0,0.00019452,2]
[315193427,1708920641815,-500.0,0.00019452,2]
[315193428,1708920641824,-501.66893489,0.00019452,2]
[315193429,1708920641833,-500.0,0.00019452,2]
[315193430,1708920641842,-500.0,0.00019452,2]
[315193431,1708920641851,-500.0,0.00019452,2]
[315193432,1708920641860,-500.0,0.00019452,2]
[315193433,1708920641870,-500.0,0.00019452,2]
[315193434,1708920641879,-625.55,0.00019452,2]
[315193435,1708920641888,-500.0,0.00019452,2]
[315193436,1708920641898,-542.91475933,0.00019452,2]
[315193437,1708920641907,-500.0,0.00019452,2]
[315193438,1708920641917,-397.25117169,0.00019452,2]
[315193439,1708920641926,-520.70514631,0.00019452,2]
[315193440,1708920641935,-501.20981282,0.00019452,2]
[315193441,1708920641945,-500.0,0.00019452,2]
[315193442,1708920641954,-500.0,0.00019452,2]
[315193443,1708920641963,-500.0,0.00019452,2]
[315193444,1708920641972,-390.70436853,0.00019452,2]
[315193445,1708920641981,-548.47261146,0.00019452,2]
[315193446,1708920641991,-500.0,0.00019452,2]
[315193447,1708920641999,-500.0,0.00019452,2]
[315193448,1708920642008,-500.0,0.00019452,2]
[315193449,1708920642017,-500.0,0.00019452,2]
[315193450,1708920642026,-500.0,0.00019452,2]
[315193451,1708920642037,-500.0,0.00019452,2]
[315193452,1708920642046,-500.0,0.00019452,2]
[315193453,1708920642055,-640.94855837,0.00019452,2]
[315193454,1708920642064,-502.20415089,0.00019452,2]
[315193455,1708920642073,-501.32076136,0.00019452,2]
[315193456,1708920642083,-502.89262175,0.00019452,2]
[315193457,1708920642091,-500.0,0.00019452,2]
[315193458,1708920642101,-501.23926151,0.00019452,2]
[315193459,1708920642110,-516.12591653,0.00019452,2]
[315193460,1708920642119,-500.60648921,0.00019452,2]
[315193461,1708920642128,-500.0,0.00019452,2]
[315193462,1708920642137,-500.0,0.00019452,2]
[315193463,1708920642146,-588.75636197,0.00019452,2]
[315193464,1708920642155,-625.28,0.00019452,2]
[315193465,1708920642164,-500.0,0.00019452,2]
[315193466,1708920642173,-500.0,0.00019452,2]
[315193467,1708920642182,-500.0,0.00019452,2]
[315193468,1708920642191,-497.00174819,0.00019452,2]
[315193469,1708920642201,-500.0,0.00019452,2]
[315193470,1708920642210,-292.15226253,0.00019452,2]
[315193471,1708920642219,-500.0,0.00019452,2]
[315193472,1708920642229,-500.74176148,0.00019452,2]
[315193473,1708920642238,-500.0,0.00019452,2]
[315193474,1708920642248,-500.0,0.00019452,2]
[315193475,1708920642256,-500.0,0.00019452,2]
[315193476,1708920642265,-414.96663376,0.00019452,2]
[315193477,1708920642274,-500.73988973,0.00019452,2]
[315193478,1708920642283,-581.01,0.00019452,2]
[315193479,1708920642292,-500.0,0.00019452,2]
[315193480,1708920642301,-500.0,0.00019452,2]
[315193481,1708920642310,-500.0,0.00019452,2]
[315193482,1708920642319,-500.0,0.00019452,2]
[315193483,1708920642328,-500.0,0.00019452,2]
[315193484,1708920642337,-500.0,0.00019452,2]
[315193485,1708920642346,-500.63508727,0.00019452,2]
[315193486,1708920642355,-2297.51,0.00019452,2]
[315193487,1708920642364,-500.0,0.00019452,2]
[315193488,1708920642373,-500.0,0.00019452,2]
[315193489,1708920642382,-500.0,0.00019452,2]
[315193490,1708920642391,-631.67993521,0.00019452,2]
[315193491,1708920642400,-501.17320826,0.00019452,2]
[315193492,1708920642409,-500.0,0.00019452,2]
[315193493,1708920642418,-1783.95,0.00019452,2]
[315193494,1708920642428,-500.0,0.00019452,2]
[315193495,1708920642436,-500.0,0.00019452,2]
[315193496,1708920642445,-500.0,0.00019452,2]
[315193497,1708920642454,-500.0,0.00019452,2]
[315193498,1708920642463,-500.0,0.00019452,2]
[315193499,1708920642472,-501.11194188,0.00019452,2]
[315193500,1708920642481,-500.0,0.00019452,2]
[315193501,1708920642490,-421.15243757,0.00019452,2]
[315193502,1708920642499,-500.0,0.00019452,2]
[315193503,1708920642508,-500.0,0.00019452,2]
[315193504,1708920642516,-500.0,0.00019452,2]
[315193505,1708920642526,-500.0,0.00019452,2]
[315193506,1708920642535,-500.0,0.00019452,2]
[315193507,1708920642544,-500.0,0.00019452,2]
[315193508,1708920642553,-500.0,0.00019452,2]
[315193509,1708920642562,-500.0,0.00019452,2]
[315193510,1708920642571,-500.0,0.00019452,2]
[315193511,1708920642583,-500.0,0.00019452,2]
[315193512,1708920642592,-312.51592479,0.00019452,2]
[315193513,1708920642601,-500.0,0.00019452,2]
[315193514,1708920642610,-587.29506689,0.00019452,2]
[315193515,1708920642619,-500.0,0.00019452,2]
[315193516,1708920642628,-1039.45,0.00019452,2]
[315193517,1708920642637,-500.0,0.00019452,2]
[315193518,1708920642646,-151.0,0.00019452,2]
[315193520,1708920642656,-500.0,0.00019452,2]
[315193521,1708920642665,-500.0,0.00019452,2]
[315193522,1708920642675,-500.0,0.00019452,2]
[315193523,1708920642684,-500.0,0.00019452,2]
[315193525,1708920642693,-500.0,0.00019452,2]
[315193527,1708920642703,-544.80572393,0.00019452,2]
[315193529,1708920642712,-549.7,0.00019452,2]
[315193531,1708920642722,-500.0,0.00019452,2]
[315193533,1708920642731,-267.02389564,0.00019452,2]
[315193535,1708920642740,-500.0,0.00019452,2]
[315193536,1708920642750,-500.0,0.00019452,2]
[315193537,1708920642759,-640.38620748,0.00019452,2]
[315193538,1708920642768,-500.0,0.00019452,2]
[315193539,1708920642777,-773.55,0.00019452,2]
[315193540,1708920642787,-500.0,0.00019452,2]
[315193541,1708920642795,-500.0,0.00019452,2]
[315193542,1708920642805,-249.09722205,0.00019452,2]
[315193543,1708920642814,-500.0,0.00019452,2]
[315193544,1708920642823,-500.0,0.00019452,2]
[315193545,1708920642832,-291.00212191,0.00019452,2]
[315193546,1708920642841,-500.0,0.00019452,2]
[315193547,1708920642850,-1524.79,0.00019452,2]
[315193548,1708920642859,-1590.92,0.00019452,2]
[315193549,1708920642869,-500.0,0.00019452,2]
[315193550,1708920642878,-500.0,0.00019452,2]
[315193551,1708920642887,-11036.19,0.00019452,2]
[315193552,1708920642896,-500.0,0.00019452,2]
[315193553,1708920642905,-500.0,0.00019452,2]
[315193554,1708920642914,-500.0,0.00019452,2]
[315193555,1708920642924,-965.48,0.00019452,2]
[315193556,1708920642933,-2991.11,0.00019452,2]
[315193557,1708920642943,-4175.75,0.00019452,2]
[315193558,1708920642952,-826.02,0.00019452,2]
[315193559,1708920642962,-500.0,0.00019452,2]
[315193560,1708920642971,-500.0,0.00019452,2]
[315193561,1708920642981,-212.2436076,0.00019452,2]
[315193562,1708920642990,-500.0,0.00019452,2]
[315193563,1708920642999,-500.0,0.00019452,2]
[315193564,1708920643008,-2012.34,0.00019452,2]
[315193566,1708920643017,-500.35866528,0.00019452,2]
[315193567,1708920643026,-500.0,0.00019452,2]
[315193568,1708920643035,-500.0,0.00019452,2]
[315193569,1708920643044,-500.0,0.00019452,2]
[315193570,1708920643053,-500.0,0.00019452,2]
[315193571,1708920643062,-1000.0,0.00019452,2]
[315193572,1708920643071,-500.0,0.00019452,2]
[315193573,1708920643080,-500.0,0.00019452,2]
[315193574,1708920643089,-500.0,0.00019452,2]
[315193575,1708920643099,-500.0,0.00019452,2]
[315193576,1708920643108,-2709.02,0.00019452,2]
[315193577,1708920643116,-2190.26,0.00019452,2]
[315193578,1708920643125,-2052.23,0.00019452,2]
[315193579,1708920643133,-500.0,0.00019452,2]
[315193580,1708920643142,-500.0,0.00019452,2]
[315193581,1708920643151,-500.0,0.00019452,2]
[315193582,1708920643160,-500.0,0.00019452,2]
[315193583,1708920643169,-500.0,0.00019452,2]
[315193584,1708920643177,-510.36105547,0.00019452,2]
[315193585,1708920643186,-500.0,0.00019452,2]
[315193586,1708920643195,-635.83996825,0.00019452,2]
[315193587,1708920643204,-500.0,0.00019452,2]
[315193588,1708920643213,-500.0,0.00019452,2]
[315193589,1708920643222,-500.0,0.00019452,2]
[315193590,1708920643232,-500.0,0.00019452,2]
[315193592,1708920643241,-470.37536287,0.00019452,2]
[315193594,1708920643250,-501.91998645,0.00019452,2]
[315193595,1708920643259,-1000.0,0.00019452,2]
[315193596,1708920643268,-500.0,0.00019452,2]
[315193597,1708920643277,-500.0,0.00019452,2]
[315193604,1708920643373,-500.0,0.00019452,2]
[315193605,1708920643383,-500.0,0.00019452,2]
[315193606,1708920643393,-22783.65,0.00019452,2]
[315193607,1708920643402,-501.52534223,0.00019452,2]
[315193608,1708920643411,-500.0,0.00019452,2]
[315193609,1708920643421,-509.9265336,0.00019452,2]
[315193610,1708920643430,-500.0,0.00019452,2]
[315193611,1708920643440,-1778.63,0.00019452,2]
[315193612,1708920643449,-643.67,0.00019452,2]
[315193614,1708920643459,-2320.92,0.00019452,2]
[315193615,1708920643469,-500.0,0.00019452,2]
[315193616,1708920643478,-500.0,0.00019452,2]
[315193617,1708920643488,-8250.54,0.00019452,2]
[315193618,1708920643498,-500.0,0.00019452,2]
[315193619,1708920643507,-500.0,0.00019452,2]
[315193620,1708920643516,-500.0,0.00019452,2]
[315193621,1708920643526,-500.0,0.00019452,2]
[315193622,1708920643535,-500.0,0.00019452,2]
[315193623,1708920643544,-500.0,0.00019452,2]
[315193624,1708920643554,-500.0,0.00019452,2]
[315193625,1708920643563,-500.0,0.00019452,2]
[315193626,1708920643572,-500.0,0.00019452,2]
[315193627,1708920643585,-11233.87,0.00019452,2]
[315193628,1708920643594,-500.0,0.00019452,2]
[315193629,1708920643603,-500.0,0.00019452,2]
[315193630,1708920643612,-805.16,0.00019452,2]
[315193631,1708920643622,-500.0,0.00019452,2]
[315193633,1708920643632,-500.0,0.00019452,2]
[315193634,1708920643641,-500.0,0.00019452,2]
[315193635,1708920643650,-3074.48,0.00019452,2]
[315193636,1708920643660,-510.91242024,0.00019452,2]
[315193637,1708920643669,-2405.23,0.00019452,2]
[315193638,1708920643678,-501.56333098,0.00019452,2]
[315193639,1708920643687,-593.05407186,0.00019452,2]
[315193640,1708920643696,-500.0,0.00019452,2]
[315193641,1708920643706,-500.0,0.00019452,2]
[315193642,1708920643715,-500.0,0.00019452,2]
[315193643,1708920643724,-501.64126338,0.00019452,2]
[315193644,1708920643734,-3496.35,0.00019452,2]
[315193645,1708920643743,-500.0,0.00019452,2]
[315193646,1708920643752,-500.0,0.00019452,2]
[315193647,1708920643762,-500.0,0.00019452,2]
[315193648,1708920643771,-500.0,0.00019452,2]
[315193649,1708920643780,-3161.99,0.00019452,2]
[315193650,1708920643789,-22902.69,0.00019452,2]
[315193651,1708920643799,-1541.99,0.00019452,2]
[315193652,1708920643808,-500.0,0.00019452,2]
[315193653,1708920643817,-500.0,0.00019452,2]
[315193654,1708920643826,-1270.54,0.00019452,2]
[315193655,1708920643835,-500.0,0.00019452,2]
[315193656,1708920643845,-500.0,0.00019452,2]
[315193657,1708920643855,-4348.38,0.00019452,2]
[315193658,1708920643864,-500.0,0.00019452,2]
[315193659,1708920643874,-500.0,0.00019452,2]
[315193660,1708920643883,-1654.62,0.00019452,2]
[315193661,1708920643892,-2174.93,0.00019452,2]
[315193662,1708920643902,-500.0,0.00019452,2]
[315193663,1708920643911,-182.85476532,0.00019465,2]
[315193664,1708920643920,-3152.07790071,0.00019471,2]
[315193665,1708920643930,-4178.33582189,0.00019481,2]
[315193666,1708920643940,-182.85476532,0.00019482,2]
[315193667,1708920643949,-3152.07790071,0.00019484,2]
[315193668,1708920643958,-182.85476532,0.00019489,2]
[315193669,1708920643968,-4178.33582189,0.00019489,2]
[315193670,1708920643977,-3152.07790071,0.00019495,2]
[315193671,1708920643986,-4178.33582189,0.00019496,2]
[315193672,1708920643995,-153.0,0.000195,2]
[315193673,1708920644004,-153.0,0.000195,2]
[315193674,1708920644013,-153.0,0.000195,2]
[315193675,1708920644022,-153.0,0.000195,2]
[315193676,1708920644031,-166.666666,0.00019627,2]
[315193677,1708920644040,-75877.75163095,0.00019656,2]
[315193678,1708920644049,-14885.27956934,0.0001969,2]
[315193679,1708920644058,-306.0,0.000197,2]
[315193680,1708920644067,-2377.88332858,0.000197,2]
[315193681,1708920644076,-2377.88332858,0.000197,2]
[315193682,1708920644085,-2377.88332858,0.000197,2]
[315193683,1708920644094,-3152.0779007,0.000197,2]
[315193684,1708920644103,-3152.0779007,0.000197,2]
[315193685,1708920644112,-3152.0779007,0.000197,2]
[315193686,1708920644121,-592.7,0.00019725,2]
[315193687,1708920644129,-592.7,0.00019725,2]
[315193688,1708920644138,-592.7,0.00019725,2]
[315193689,1708920644147,-592.7,0.00019725,2]
[315193690,1708920644156,-500.0,0.00019726,2]
[315193691,1708920644165,-500.0,0.00019726,2]
[315193692,1708920644174,-500.0,0.00019726,2]
[315193693,1708920644183,-500.0,0.00019726,2]
[315193694,1708920644191,-500.0,0.00019726,2]
[315193695,1708920644201,-500.0,0.00019726,2]
[315193696,1708920644210,-500.0,0.00019726,2]
[315193697,1708920644219,-500.0,0.00019726,2]
[315193698,1708920644228,-500.0,0.00019726,2]
[315193699,1708920644237,-1281.73,0.00019726,2]
[315193700,1708920644245,-500.0,0.00019726,2]
[315193701,1708920644255,-500.0,0.00019726,2]
[315193702,1708920644263,-500.0,0.00019726,2]
[315193703,1708920644272,-503.07483176,0.00019726,2]
[315193704,1708920644281,-501.43554536,0.00019726,2]
[315193705,1708920644290,-500.0,0.00019726,2]
[315193706,1708920644299,-500.0,0.00019726,2]
[315193707,1708920644308,-500.0,0.00019726,2]
[315193708,1708920644317,-500.0,0.00019726,2]
[315193709,1708920644326,-500.0,0.00019726,2]
[315193710,1708920644334,-405.80118565,0.00019726,2]
[315193711,1708920644343,-500.0,0.00019726,2]
[315193712,1708920644352,-500.77094281,0.00019726,2]
[315193713,1708920644361,-500.0,0.00019726,2]
[315193714,1708920644370,-1753.33,0.00019726,2]
[315193715,1708920644379,-500.0,0.00019726,2]
[315193716,1708920644388,-501.82744386,0.00019726,2]
[315193717,1708920644397,-773.14,0.00019726,2]
[315193718,1708920644405,-503.89798039,0.00019726,2]
[315193719,1708920644414,-505.82718587,0.00019726,2]
[315193720,1708920644423,-501.61886765,0.00019726,2]
[315193721,1708920644431,-500.0,0.00019726,2]
[315193722,1708920644440,-500.0,0.00019726,2]
[315193723,1708920644449,-201.4020096,0.00019726,2]
[315193724,1708920644457,-501.22568197,0.00019726,2]
[315193725,1708920644466,-507.460159,0.00019726,2]
[315193726,1708920644475,-625.55,0.00019726,2]
[315193727,1708920644485,-350.38082204,0.00019726,2]
[315193728,1708920644494,-502.59254661,0.00019726,2]
[315193729,1708920644503,-500.0,0.00019726,2]
[315193730,1708920644512,-504.63239658,0.00019726,2]
[315193731,1708920644521,-500.0,0.00019726,2]
[315193732,1708920644530,-504.21335184,0.00019726,2]
[315193733,1708920644538,-501.25122817,0.00019726,2]
[315193734,1708920644547,-500.0,0.00019726,2]
[315193735,1708920644556,-503.84063376,0.00019726,2]
[315193736,1708920644565,-500.0,0.00019726,2]
[315193737,1708920644575,-310.21411182,0.00019726,2]
[315193738,1708920644586,-500.0,0.00019726,2]
[315193739,1708920644595,-502.0457706,0.00019726,2]
[315193740,1708920644603,-500.0,0.00019726,2]
[315193741,1708920644613,-500.0,0.00019726,2]
[315193742,1708920644622,-625.28,0.00019726,2]
[315193743,1708920644631,-500.0,0.00019726,2]
[315193744,1708920644640,-156.352017,0.00019726,2]
[315193745,1708920644649,-500.0,0.00019726,2]
[315193746,1708920644659,-500.0,0.00019726,2]
[315193747,1708920644669,-501.98549869,0.00019726,2]
[315193748,1708920644678,-500.0,0.00019726,2]
[315193749,1708920644687,-500.89874379,0.00019726,2]
[315193750,1708920644696,-500.0,0.00019726,2]
[315193751,1708920644706,-500.0,0.00019726,2]
[315193752,1708920644715,-502.06092799,0.00019726,2]
[315193753,1708920644724,-500.0,0.00019726,2]
[315193754,1708920644733,-500.79176669,0.00019726,2]
[315193755,1708920644742,-500.0,0.00019726,2]
[315193756,1708920644752,-500.94944783,0.00019726,2]
[315193757,1708920644761,-500.0,0.00019726,2]
[315193758,1708920644770,-2297.51,0.00019726,2]
[315193759,1708920644778,-501.23396073,0.00019726,2]
[315193760,1708920644788,-503.24638074,0.00019726,2]
[315193761,1708920644797,-500.0,0.00019726,2]
[315193762,1708920644806,-500.0,0.00019726,2]
[315193763,1708920644815,-1783.95,0.00019726,2]
[315193764,1708920644824,-500.0,0.00019726,2]
[315193765,1708920644833,-501.76089687,0.00019726,2]
[315193766,1708920644844,-1813.61263,0.00019726,2]
[315193767,1708920644853,-209.81817441,0.00019726,2]
[315193768,1708920644863,-501.16377799,0.00019726,2]
[315193769,1708920644872,-1813.61263,0.00019726,2]
[315193770,1708920644881,-500.0,0.00019726,2]
[315193771,1708920644891,-500.0,0.00019726,2]
[315193772,1708920644900,-500.0,0.00019726,2]
[315193773,1708920644909,-500.0,0.00019726,2]
[315193774,1708920644918,-501.45514214,0.00019726,2]
[315193775,1708920644928,-500.0,0.00019726,2]
[315193776,1708920644937,-500.0,0.00019726,2]
[315193777,1708920644946,-500.0,0.00019726,2]
[315193778,1708920644955,-500.0,0.00019726,2]
[315193779,1708920644965,-500.0,0.00019726,2]
[315193780,1708920644974,-500.0,0.00019726,2]
[315193781,1708920644983,-500.0,0.00019726,2]
[315193782,1708920644992,-500.0,0.00019726,2]
[315193783,1708920645002,-500.0,0.00019726,2]
[315193784,1708920645011,-1039.45,0.00019726,2]
[315193785,1708920645020,-500.0,0.00019726,2]
[315193786,1708920645029,-151.0,0.00019726,2]